bitfinex/quotes_BTCUSD_20230120
["timestamp","ask_amount","ask_price","bid_price","bid_amount"]
[1674180976756,0.45970205,21106.0,21105.0,0.02965057]
[1674180977011,0.09,21106.0,21105.0,0.02965057]
[1674180977306,0.09,21106.0,21105.0,0.41390099]
[1674180977804,0.09,21106.0,21105.0,0.88772199]
[1674180978105,0.09,21106.0,21105.0,1.20896499]
[1674180978369,1.01605934,21109.0,21105.0,1.20314099]
[1674180978666,0.082,21106.0,21105.0,0.88872199]
[1674180980040,1.18599856,21109.0,21105.0,0.88772199]
[1674180980299,1.01605934,21109.0,21105.0,0.88772199]
[1674180980554,0.34309359,21107.0,21105.0,0.88772199]
[1674180981107,0.34309359,21107.0,21105.0,0.88872199]
[1674180981413,0.34309359,21107.0,21105.0,0.88772199]
[1674180981681,0.42509359,21107.0,21105.0,0.88872199]
[1674180982468,0.42509359,21107.0,21105.0,1.36254299]
[1674180982901,0.082,21107.0,21105.0,1.36254299]
[1674180983563,0.082,21107.0,21106.0,0.41220376]
[1674180984852,0.40192312,21108.0,21106.0,0.41220376]
[1674180985116,0.082,21107.0,21106.0,0.41320376]
[1674180985948,0.40192312,21108.0,21106.0,0.41220376]
[1674180986785,0.48392312,21108.0,21106.0,0.41320376]
[1674180987053,0.322178,21107.0,21106.0,0.41320376]
[1674180987317,0.48392312,21108.0,21106.0,0.41320376]
[1674180987848,0.51520645,21108.0,21106.0,0.41220376]
[1674180988114,0.308069,21107.0,21106.0,0.41220376]
[1674180988368,0.082,21107.0,21106.0,0.41220376]
[1674180988635,0.40192312,21108.0,21106.0,0.41220376]
[1674180988890,0.48392312,21108.0,21106.0,0.41320376]
[1674180989156,0.311547,21107.0,21106.0,0.41320376]
[1674180989458,0.48392312,21108.0,21106.0,0.41320376]
[1674180989710,0.330425,21107.0,21106.0,0.41320376]
[1674180989986,0.51520645,21108.0,21106.0,0.41220376]
[1674180990237,0.325322,21107.0,21106.0,0.41220376]
[1674180990492,0.51520645,21108.0,21106.0,0.41220376]
[1674180990762,0.59720645,21108.0,21106.0,0.41320376]
[1674180991023,0.320335,21107.0,21106.0,0.41320376]
[1674180991524,0.59720645,21108.0,21106.0,0.41320376]
[1674180991765,0.40192312,21108.0,21106.0,0.41220376]
[1674180992054,0.40192312,21108.0,21106.0,0.41320376]
[1674180992310,0.082,21107.0,21106.0,0.41220376]
[1674180993667,0.082,21107.0,21106.0,0.41320376]
[1674180994180,0.9576048,21109.0,21106.0,0.41220376]
[1674180994725,0.082,21107.0,21106.0,0.41320376]
[1674180994983,0.9576048,21109.0,21106.0,0.41220376]
[1674180995239,1.0396048,21109.0,21106.0,0.41320376]
[1674180995515,0.92632147,21109.0,21106.0,0.41320376]
[1674180995777,0.84432147,21109.0,21106.0,0.41220376]
[1674180996064,0.082,21107.0,21106.0,0.41320376]
[1674180996606,0.082,21107.0,21106.0,0.88700176]
[1674180996862,0.082,21107.0,21106.0,0.89550176]
[1674180997410,0.37057247,21109.0,21106.0,1.36829976]
[1674180997671,0.45257247,21109.0,21106.0,0.89550176]
[1674180997933,0.37057247,21109.0,21106.0,0.89450176]
[1674180998200,0.082,21107.0,21106.0,0.89550176]
[1674180998455,0.37057247,21109.0,21106.0,0.89450176]
[1674180998725,0.45257247,21109.0,21107.0,0.34981296]
[1674180999517,0.082,21109.0,21107.0,1.29736096]
[1674180999742,0.33065617,21111.0,21108.0,0.333468]
[1674181000003,0.33065617,21111.0,21109.0,0.304101]
[1674181000249,0.36344959,21112.0,21110.0,0.419961]
[1674181000500,0.36344959,21112.0,21111.0,0.309868]
[1674181000768,0.37634692,21111.0,21109.0,0.473722]
[1674181001327,0.58693133,21113.0,21109.0,0.473722]
[1674181001328,0.081,21112.0,21109.0,0.473722]
[1674181001543,0.36882475,21112.0,21109.0,0.88994104]
[1674181001808,0.012,21111.0,21109.0,0.89194104]
[1674181002079,0.44237505,21111.0,21109.0,0.88994104]
[1674181002342,0.52337505,21111.0,21109.0,0.474722]
[1674181002827,0.43037505,21111.0,21109.0,0.473722]
[1674181002829,0.38251975,21110.0,21109.0,0.474722]
[1674181003366,0.38251975,21110.0,21109.0,0.483222]
[1674181003603,0.38251975,21110.0,21109.0,0.482222]
[1674181003875,0.38251975,21110.0,21109.0,0.483222]
[1674181004128,0.38251975,21110.0,21109.0,0.482222]
[1674181004386,0.57780308,21110.0,21109.0,0.001]
[1674181004642,0.90849508,21110.0,21109.0,0.001]
[1674181005174,0.82649508,21110.0,21107.0,0.473776]
[1674181005424,0.57780308,21110.0,21109.0,0.001]
[1674181005689,0.88716808,21110.0,21109.0,0.001]
[1674181006496,0.80516808,21110.0,21108.0,0.01818147]
[1674181006757,0.22809,21109.0,21108.0,0.01818147]
[1674181007309,0.309365,21109.0,21108.0,0.01818147]
[1674181007573,0.49580308,21110.0,21108.0,0.01818147]
[1674181007856,0.57780308,21110.0,21108.0,0.01818147]
[1674181008115,0.328563,21109.0,21108.0,0.01818147]
[1674181008377,0.802294,21109.0,21108.0,0.01818147]
[1674181008647,0.91557733,21109.0,21108.0,0.01818147]
[1674181008921,0.802294,21109.0,21108.0,0.01818147]
[1674181009383,0.802294,21109.0,21108.0,0.001]
[1674181010169,0.802294,21109.0,21106.0,0.38421528]
[1674181010447,0.555731,21109.0,21108.0,0.001]
[1674181010923,0.878902,21109.0,21108.0,0.001]
[1674181011197,0.796902,21109.0,21107.0,0.35063814]
[1674181011461,0.214284,21108.0,21107.0,0.35063814]
[1674181011734,0.8109334,21109.0,21107.0,0.35063814]
[1674181011987,0.8929334,21109.0,21108.0,0.001]
[1674181012240,0.8929334,21109.0,21108.0,0.08312]
[1674181013055,0.8929334,21109.0,21108.0,0.001]
[1674181013516,0.8109334,21109.0,21107.0,0.35063814]
[1674181013774,0.8929334,21109.0,21107.0,0.35163814]
[1674181014035,0.8109334,21109.0,21107.0,0.35063814]
[1674181014320,0.8929334,21109.0,21108.0,0.001]
[1674181014787,0.8929334,21109.0,21107.0,0.35063814]
[1674181014788,0.8109334,21109.0,21107.0,0.35063814]
[1674181015013,0.4192024,21109.0,21107.0,0.82541114]
[1674181015265,0.4192024,21109.0,21107.0,0.35163814]
[1674181015789,0.082,21109.0,21107.0,0.35163814]
[1674181016044,0.83857662,21111.0,21107.0,0.45063814]
[1674181016311,0.082,21109.0,21108.0,0.08312]
[1674181016565,0.36487362,21111.0,21108.0,0.18212]
[1674181016881,0.082,21109.0,21108.0,1.129628]
[1674181017088,0.58694333,21113.0,21109.0,0.46674028]
[1674181017089,0.37791678,21112.0,21109.0,0.46674028]
[1674181017340,0.082,21111.0,21110.0,0.31109]
[1674181017626,0.37791678,21112.0,21109.0,0.94045428]
[1674181017870,0.082,21111.0,21109.0,1.41416528]
[1674181018166,0.082,21111.0,21110.0,0.1]
[1674181018379,0.37791678,21112.0,21110.0,0.422263]
[1674181018624,0.081,21112.0,21111.0,0.316184]
[1674181018916,0.081,21112.0,21111.0,0.78987]
[1674181019161,0.081,21112.0,21111.0,0.473686]
[1674181019664,0.081,21112.0,21111.0,0.85453218]
[1674181019925,1.17540426,21115.0,21111.0,0.85453218]
[1674181020177,1.00546504,21115.0,21111.0,0.85453218]
[1674181020429,1.17540426,21115.0,21111.0,0.85453218]
[1674181020690,1.00546504,21115.0,21111.0,0.85453218]
[1674181020950,0.41856871,21115.0,21111.0,1.32821818]
[1674181021213,0.41856871,21115.0,21111.0,0.947372]
[1674181021214,0.00695618,21115.0,21111.0,0.947372]
[1674181021478,0.28327715,21115.0,21112.0,0.30787]
[1674181021729,0.08895618,21115.0,21113.0,0.473641]
[1674181022555,0.08895618,21115.0,21113.0,1.30675834]
[1674181022829,0.00695618,21115.0,21114.0,0.39056199]
[1674181023086,0.08895618,21115.0,21114.0,0.3904852]
[1674181023368,0.00695618,21115.0,21114.0,0.3904852]
[1674181024138,0.08895618,21115.0,21114.0,0.3914852]
[1674181026522,0.00695618,21115.0,21114.0,0.3904852]
[1674181027051,0.07495618,21115.0,21114.0,0.3924852]
[1674181027317,0.07495618,21115.0,21114.0,0.3904852]
[1674181027318,0.00695618,21115.0,21114.0,0.3904852]
[1674181027571,0.07495618,21115.0,21114.0,0.3924852]
[1674181028319,0.07495618,21115.0,21114.0,0.3925452]
[1674181029345,0.07495618,21115.0,21114.0,0.00206]
[1674181029603,0.41240558,21115.0,21114.0,0.00206]
[1674181033511,0.41240558,21115.0,21114.0,0.002]
[1674181033811,0.07495618,21115.0,21114.0,0.46880064]
[1674181035549,0.07495618,21115.0,21114.0,0.94241964]
[1674181036073,0.07487021,21115.0,21114.0,0.94241964]
[1674181036523,0.07487021,21115.0,21114.0,0.46880064]
[1674181036777,0.07487021,21115.0,21114.0,0.47730064]
[1674181037055,0.07487021,21115.0,21114.0,0.95091964]
[1674181037568,0.07487021,21115.0,21114.0,0.484119]
[1674181037827,0.5038858,21115.0,21114.0,0.484119]
[1674181038377,0.5038858,21115.0,21114.0,0.0105]
[1674181038617,0.5038858,21115.0,21114.0,0.002]
[1674181039169,0.8348698,21115.0,21114.0,0.002]
[1674181040553,0.42425732,21114.0,21113.0,0.00856]
[1674181040819,0.63072832,21114.0,21113.0,0.00856]
[1674181041092,0.42425732,21114.0,21113.0,0.00856]
[1674181041353,0.42425732,21114.0,21113.0,0.482201]
[1674181041927,0.50025732,21114.0,21113.0,0.483201]
[1674181042479,0.50025732,21114.0,21113.0,0.00956]
[1674181042970,0.42425732,21114.0,21113.0,0.00856]
[1674181043192,0.50125732,21114.0,21113.0,0.00956]
[1674181043452,0.550619,21114.0,21113.0,6e-05]
[1674181043717,1.32952882,21114.0,21113.0,0.00106]
[1674181044768,1.25252882,21114.0,21113.0,0.00106]
[1674181045327,1.25252882,21114.0,21113.0,6e-05]
[1674181046388,1.17552882,21114.0,21113.0,6e-05]
[1674181046605,1.17552882,21114.0,21113.0,0.00106]
[1674181046874,1.25252882,21114.0,21113.0,6e-05]
[1674181047131,1.17552882,21114.0,21113.0,6e-05]
[1674181048931,0.473619,21114.0,21113.0,6e-05]
[1674181049190,0.473619,21114.0,21113.0,0.35543989]
[1674181049553,0.473619,21114.0,21113.0,0.35537989]
[1674181049738,0.550619,21114.0,21113.0,0.35637989]
[1674181049998,0.473619,21114.0,21113.0,0.35537989]
[1674181050269,0.077,21114.0,21113.0,0.35637989]
[1674181050523,0.82618433,21115.0,21113.0,0.35537989]
[1674181050794,0.077,21114.0,21113.0,0.35637989]
[1674181051313,0.077,21114.0,21113.0,0.36387989]
[1674181051582,0.077,21114.0,21113.0,0.69561889]
[1674181051877,0.077,21114.0,21113.0,0.83851889]
[1674181052407,0.077,21114.0,21113.0,1.13802789]
[1674181052664,0.00687021,21115.0,21113.0,1.13702789]
[1674181052952,0.077,21114.0,21113.0,0.83751889]
[1674181053230,0.153,21114.0,21113.0,0.83851889]
[1674181053524,0.00687021,21115.0,21113.0,1.16887289]
[1674181053777,0.00687021,21115.0,21114.0,0.330781]
[1674181054041,0.00687021,21115.0,21113.0,0.83751889]
[1674181054303,0.08287021,21115.0,21113.0,0.83851889]
[1674181055143,0.08287021,21115.0,21113.0,0.83852089]
[1674181055400,0.08287021,21115.0,21113.0,1.31216189]
[1674181056243,0.08287021,21115.0,21113.0,0.83852089]
[1674181056508,0.41445058,21115.0,21113.0,0.36487989]
[1674181056762,0.41445058,21115.0,21113.0,0.0095]
[1674181057039,0.37096785,21114.0,21113.0,0.0095]
[1674181059164,0.37096785,21114.0,21113.0,0.0085]
[1674181059731,0.44696785,21114.0,21113.0,0.0095]
[1674181061060,0.076,21114.0,21113.0,0.09162]
[1674181061626,0.076,21114.0,21113.0,0.44379287]
[1674181062683,0.076,21114.0,21113.0,1.39107487]
[1674181062932,0.076,21114.0,21113.0,1.70421287]
[1674181064509,0.076,21114.0,21113.0,1.39107487]
[1674181065022,0.076,21114.0,21113.0,1.37697487]
[1674181067271,0.076,21114.0,21113.0,1.38547487]
[1674181067778,0.076,21114.0,21113.0,1.30795487]
[1674181074558,0.076,21114.0,21113.0,1.62374287]
[1674181074852,0.076,21114.0,21113.0,1.30795487]
[1674181075624,0.076,21114.0,21113.0,1.62032587]
[1674181076149,0.076,21114.0,21113.0,1.30795487]
[1674181076396,0.076,21114.0,21113.0,1.62685987]
[1674181076657,0.076,21114.0,21113.0,1.30795487]
[1674181081862,0.076,21114.0,21113.0,1.61748787]
[1674181082129,0.076,21114.0,21113.0,1.30795487]
[1674181083422,0.403613,21114.0,21113.0,0.482141]
[1674181084955,0.92048717,21114.0,21112.0,6e-05]
[1674181085510,0.216065,21113.0,21112.0,6e-05]
[1674181085768,0.316065,21113.0,21112.0,6e-05]
[1674181086060,0.216065,21113.0,21112.0,0.00856]
[1674181086579,0.216065,21113.0,21112.0,0.00956]
[1674181086857,0.216065,21113.0,21112.0,0.00856]
[1674181087117,0.293065,21113.0,21112.0,0.00956]
[1674181088862,0.077,21113.0,21112.0,0.09168]
[1674181089123,0.077,21113.0,21112.0,1.356647]
[1674181089383,0.077,21113.0,21112.0,2.71702669]
[1674181089646,0.07693324,21113.0,21112.0,2.84110094]
[1674181090150,0.07693324,21113.0,21112.0,3.14110094]
[1674181090408,0.07693324,21113.0,21112.0,3.36550737]
[1674181090882,0.07693324,21113.0,21112.0,2.84110094]
[1674181091130,0.07693324,21113.0,21112.0,3.06550737]
[1674181091385,0.07693324,21113.0,21112.0,2.95450951]
[1674181091911,0.07693324,21113.0,21112.0,3.95345927]
[1674181092157,0.07693324,21113.0,21112.0,3.84292105]
[1674181092669,0.07693324,21113.0,21112.0,3.67283658]
[1674181092924,0.00687021,21115.0,21112.0,3.95239927]
[1674181093180,0.00687021,21115.0,21114.0,0.38331875]
[1674181093440,0.00687021,21115.0,21114.0,4.16649473]
[1674181093772,0.00687021,21115.0,21114.0,3.99650348]
[1674181093984,0.01487021,21115.0,21114.0,3.99650348]
[1674181094230,0.00687021,21115.0,21114.0,3.88317598]
[1674181094520,0.00687021,21115.0,21114.0,3.99650348]
[1674181094739,0.00687021,21115.0,21114.0,3.88317598]
[1674181094952,0.00687021,21115.0,21114.0,3.99650348]
[1674181095220,0.00687021,21115.0,21114.0,4.23397406]
[1674181095475,0.01487021,21115.0,21114.0,4.00450348]
[1674181095735,0.01487021,21115.0,21114.0,3.99650348]
[1674181095981,0.02287021,21115.0,21114.0,3.89117598]
[1674181096284,0.02287021,21115.0,21114.0,3.59117598]
[1674181096504,0.02287021,21115.0,21114.0,3.59100451]
[1674181097046,0.02287021,21115.0,21114.0,3.70433201]
[1674181097312,0.02287021,21115.0,21114.0,3.59100451]
[1674181097576,0.02287021,21115.0,21114.0,3.59106451]
[1674181097833,0.02287021,21115.0,21114.0,3.59106668]
[1674181099677,2.1e-07,21115.0,21114.0,4.95685059]
[1674181099939,2.1e-07,21115.0,21114.0,5.17097808]
[1674181100250,2.1e-07,21115.0,21114.0,5.05489453]
[1674181100768,0.00673427,21116.0,21114.0,5.04689453]
[1674181101032,0.00673427,21116.0,21115.0,2.8060817]
[1674181101318,0.00673427,21116.0,21115.0,3.7532737]
[1674181101602,0.00673427,21116.0,21115.0,3.75325739]
[1674181101856,0.00673427,21116.0,21115.0,3.86424859]
[1674181102129,0.00673427,21116.0,21115.0,3.75315102]
[1674181102682,0.00773427,21116.0,21115.0,3.83415102]
[1674181103177,0.00773427,21116.0,21115.0,3.60803396]
[1674181103433,0.00773427,21116.0,21115.0,3.65256496]
[1674181103713,0.00773427,21116.0,21115.0,3.72056143]
[1674181103976,0.00773427,21116.0,21115.0,3.65256496]
[1674181104257,0.00773427,21116.0,21115.0,3.48309984]
[1674181105037,0.00773427,21116.0,21115.0,2.88309984]
[1674181105308,0.00773427,21116.0,21115.0,1.82308669]
[1674181105835,0.00773427,21116.0,21115.0,2.12308669]
[1674181106092,0.00773427,21116.0,21115.0,3.18297045]
[1674181106366,0.00773427,21116.0,21115.0,3.48297045]
[1674181106641,0.00773427,21116.0,21115.0,3.65243557]
[1674181106981,0.00773427,21116.0,21115.0,3.72082694]
[1674181107239,0.00773427,21116.0,21115.0,3.48297045]
[1674181108000,0.00773427,21116.0,21115.0,2.53607116]
[1674181108255,0.00773427,21116.0,21115.0,2.42308669]
[1674181108508,0.00773427,21116.0,21115.0,3.4829477]
[1674181108738,0.00773427,21116.0,21115.0,2.42308669]
[1674181109996,0.42836862,21123.0,21116.0,0.1]
[1674181110287,0.00275664,21123.0,21118.0,1.894108]
[1674181110513,0.00275664,21123.0,21119.0,0.3]
[1674181110849,0.00275664,21123.0,21120.0,1.74939]
[1674181111037,0.00275664,21123.0,21121.0,0.319968]
[1674181111298,0.00275664,21123.0,21122.0,1.277213]
[1674181111582,0.39295522,21123.0,21122.0,0.95538]
[1674181111843,0.54785654,21123.0,21122.0,0.48194]
[1674181112150,0.54785654,21123.0,21119.0,0.87058675]
[1674181112151,0.09060199,21121.0,21120.0,0.473466]
[1674181112378,0.41146599,21121.0,21120.0,0.481966]
[1674181112640,0.42305999,21121.0,21120.0,0.481966]
[1674181112905,0.08212,21121.0,21120.0,0.95545]
[1674181113182,0.34480754,21122.0,21120.0,0.9782278]
[1674181113483,0.34480754,21122.0,21121.0,0.0085]
[1674181114231,0.66070154,21122.0,21121.0,0.0085]
[1674181114777,0.00275664,21123.0,21120.0,0.83550233]
[1674181115007,0.00275664,21123.0,21121.0,0.43481917]
[1674181115543,0.01,21122.0,21121.0,0.44181917]
[1674181116029,0.34278953,21123.0,21121.0,0.43481917]
[1674181116296,0.35278953,21123.0,21121.0,0.44181917]
[1674181116566,0.34278953,21123.0,21121.0,0.43481917]
[1674181116860,0.01,21122.0,21121.0,0.44181917]
[1674181117666,0.34278953,21123.0,21121.0,0.43481917]
[1674181117933,0.01275664,21123.0,21122.0,0.3]
[1674181118218,0.00275664,21123.0,21122.0,1.102525]
[1674181118480,0.00275664,21123.0,21122.0,2.52660669]
[1674181118956,0.01275664,21123.0,21122.0,2.82857143]
[1674181119208,0.00275664,21123.0,21122.0,2.82857143]
[1674181119470,0.00375664,21123.0,21122.0,2.91057143]
[1674181119725,0.00338098,21123.0,21122.0,3.0235559]
[1674181119984,0.00338098,21123.0,21122.0,2.91057143]
[1674181120515,0.00772433,21124.0,21122.0,3.88810321]
[1674181120775,0.00772433,21124.0,21123.0,1.64412043]
[1674181121040,0.00908221,21125.0,21124.0,0.1]
[1674181121301,0.01040201,21128.0,21124.0,1.69464743]
[1674181121578,0.01040201,21128.0,21127.0,0.23665]
[1674181121837,0.01040201,21128.0,21127.0,1.35394943]
[1674181122142,0.01040201,21128.0,21127.0,3.54725743]
[1674181123073,0.01002354,21132.0,21127.0,3.54725743]
[1674181123074,0.01002354,21132.0,21127.0,4.04545743]
[1674181123295,0.01002354,21132.0,21128.0,2.00019543]
[1674181123519,0.01002354,21132.0,21129.0,2.21471869]
[1674181123736,0.01002354,21132.0,21129.0,2.82518343]
[1674181124178,0.01002354,21132.0,21129.0,2.52321869]
[1674181124637,0.01002354,21132.0,21129.0,2.85318343]
[1674181124858,0.01002354,21132.0,21129.0,2.82518343]
[1674181125073,0.01002354,21132.0,21129.0,2.91818343]
[1674181125296,0.01002354,21132.0,21129.0,2.61621869]
[1674181126525,0.01002354,21132.0,21129.0,2.22321869]
[1674181126807,0.01002354,21132.0,21129.0,2.31721869]
[1674181127913,0.01002354,21132.0,21129.0,2.61721869]
[1674181132188,0.01002354,21132.0,21129.0,2.96990158]
[1674181132458,0.01002354,21132.0,21129.0,2.61721869]
[1674181134042,0.01002354,21132.0,21130.0,1.19801969]
[1674181134310,0.01002354,21132.0,21131.0,2.22973469]
[1674181134602,0.01002354,21132.0,21131.0,2.53823469]
[1674181136427,0.01002354,21132.0,21131.0,2.56623469]
[1674181136720,0.01002354,21132.0,21131.0,3.00915841]
[1674181136981,0.01002354,21132.0,21131.0,2.56623469]
[1674181137516,0.01002354,21132.0,21131.0,3.02862457]
[1674181137788,0.01002354,21132.0,21131.0,2.56623469]
[1674181138643,0.01002354,21132.0,21131.0,2.95886262]
[1674181139163,0.01002354,21132.0,21131.0,2.93086262]
[1674181139463,0.01002354,21132.0,21131.0,2.95886262]
[1674181140012,0.0128604,21134.0,21132.0,0.10997646]
[1674181140274,0.0128604,21134.0,21132.0,1.74386595]
[1674181140510,0.0128604,21134.0,21132.0,2.04386595]
[1674181141029,0.0128604,21134.0,21132.0,1.74386595]
[1674181141573,0.0128604,21134.0,21132.0,2.04386595]
[1674181142108,0.0128604,21134.0,21132.0,2.04486595]
[1674181142413,0.0128604,21134.0,21132.0,1.74486595]
[1674181142645,0.0128604,21134.0,21132.0,1.74386595]
[1674181142907,0.0128604,21134.0,21132.0,1.75086595]
[1674181143166,0.0128604,21134.0,21132.0,1.74386595]
[1674181143457,0.0128604,21134.0,21132.0,2.04486595]
[1674181143748,0.0128604,21134.0,21132.0,2.04386595]
[1674181144028,0.0128604,21134.0,21132.0,2.04486595]
[1674181144552,0.0128604,21134.0,21132.0,1.74486595]
[1674181145599,0.0128604,21134.0,21132.0,2.04486595]
[1674181146123,0.0128604,21134.0,21132.0,2.04939195]
[1674181147102,0.4775,21136.0,21134.0,199.97533755]
[1674181147360,0.4775,21136.0,21135.0,1.374604]
[1674181147916,0.0123506,21137.0,21135.0,1.374604]
[1674181148169,0.0123506,21137.0,21136.0,0.30393]
[1674181148479,0.0123506,21137.0,21136.0,0.73795866]
[1674181149462,0.0123506,21137.0,21136.0,1.258682]
[1674181149735,0.0123506,21137.0,21136.0,0.954752]
[1674181149982,0.0123506,21137.0,21136.0,1.56858]
[1674181150271,0.0123506,21137.0,21136.0,1.57658]
[1674181150763,0.0123506,21137.0,21136.0,2.40181813]
[1674181151050,0.0123506,21137.0,21136.0,2.51890769]
[1674181151305,0.0123506,21137.0,21136.0,2.84887243]
[1674181151570,0.0123506,21137.0,21136.0,2.82087243]
[1674181151830,0.0123506,21137.0,21136.0,2.82187243]
[1674181152084,0.0123506,21137.0,21136.0,2.51890769]
[1674181152342,0.0123506,21137.0,21136.0,2.52590769]
[1674181153178,0.0123506,21137.0,21136.0,2.73995916]
[1674181153439,0.0123506,21137.0,21136.0,2.52590769]
[1674181154589,0.4835,21144.0,21143.0,0.54615036]
[1674181154863,0.11347663,21146.0,21143.0,1.34491536]
[1674181155171,0.01555806,21146.0,21143.0,1.49208836]
[1674181155989,0.01555806,21146.0,21143.0,1.50008836]
[1674181156528,0.01555806,21146.0,21144.0,0.33485395]
[1674181156836,0.01555806,21146.0,21145.0,0.94585]
[1674181157583,0.65072255,21149.0,21145.0,0.94585]
[1674181157846,0.48078333,21149.0,21145.0,0.94585]
[1674181158131,0.11328333,21148.0,21145.0,0.95385]
[1674181158622,0.11328333,21148.0,21145.0,0.94585]
[1674181158623,0.10328333,21147.0,21145.0,0.94585]
[1674181158852,0.10328333,21147.0,21146.0,0.39245622]
[1674181159143,0.10328333,21147.0,21146.0,0.86535822]
[1674181159481,0.16993922,21148.0,21146.0,0.86535822]
[1674181159665,0.3965066,21149.0,21146.0,0.86535822]
[1674181159931,0.77088888,21149.0,21146.0,0.86535822]
[1674181160204,0.309552,21148.0,21146.0,0.86535822]
[1674181160462,0.227903,21147.0,21146.0,0.86535822]
[1674181160724,0.37438228,21149.0,21146.0,0.87335822]
[1674181160976,0.37438228,21149.0,21146.0,1.34626022]
[1674181161234,0.0006,21150.0,21146.0,1.35850771]
[1674181161493,0.0006,21150.0,21146.0,0.953804]
[1674181161761,0.327838,21149.0,21146.0,0.953804]
[1674181162059,0.209617,21148.0,21146.0,0.953804]
[1674181162295,0.0006,21150.0,21147.0,0.43725095]
[1674181162549,0.0006,21150.0,21148.0,0.945714]
[1674181162833,0.41758617,21150.0,21148.0,0.945714]
[1674181163313,0.336747,21149.0,21148.0,0.945714]
[1674181164119,0.336747,21149.0,21148.0,1.38926193]
[1674181164906,0.0006,21150.0,21148.0,1.39726193]
[1674181165186,0.316641,21150.0,21148.0,1.39726193]
[1674181165445,0.0006,21150.0,21149.0,0.1]
[1674181165718,0.0006,21150.0,21149.0,0.581335]
[1674181167058,0.0006,21150.0,21149.0,0.916143]
[1674181167326,0.0006,21150.0,21149.0,1.30411922]
[1674181167583,0.0006,21150.0,21149.0,0.97031122]
[1674181167843,0.0006,21150.0,21149.0,0.96931122]
[1674181168107,0.0006,21150.0,21149.0,0.87031122]
[1674181168370,0.0006,21150.0,21149.0,0.86931122]
[1674181168627,0.0006,21150.0,21149.0,0.481335]
[1674181169427,0.0006,21150.0,21149.0,0.482335]
[1674181170008,0.0006,21150.0,21149.0,0.806986]
[1674181170264,0.0006,21150.0,21149.0,0.81958547]
[1674181170524,0.0006,21150.0,21149.0,0.91008362]
[1674181170806,0.0006,21150.0,21149.0,0.482335]
[1674181171071,0.0006,21150.0,21149.0,0.84875054]
[1674181172144,0.0006,21150.0,21149.0,0.482335]
[1674181172394,0.0006,21150.0,21149.0,0.95081714]
[1674181172854,0.0006,21150.0,21149.0,0.86285935]
[1674181172857,0.0006,21150.0,21149.0,0.482335]
[1674181173374,0.0006,21150.0,21149.0,0.89991675]
[1674181173635,0.0006,21150.0,21149.0,0.482335]
[1674181174153,0.0006,21150.0,21149.0,0.88840051]
[1674181174414,0.0006,21150.0,21149.0,0.83239106]
[1674181176000,0.0006,21150.0,21149.0,0.482335]
[1674181176260,0.0006,21150.0,21149.0,0.87063638]
[1674181177305,0.0006,21150.0,21149.0,1.34347138]
[1674181177860,0.00056989,21151.0,21150.0,100.37688137]
[1674181178130,0.00056989,21151.0,21150.0,100.84969437]
[1674181178927,0.08268989,21151.0,21150.0,99.98253333]
[1674181179280,0.00056989,21151.0,21150.0,99.98253333]
[1674181179544,0.3973243,21151.0,21148.0,0.91260784]
[1674181179803,0.335402,21150.0,21148.0,0.91260784]
[1674181180064,0.202053,21149.0,21148.0,0.91260784]
[1674181180335,0.202053,21149.0,21148.0,1.38546484]
[1674181180791,0.339963,21149.0,21148.0,0.91260784]
[1674181181054,0.339963,21149.0,21148.0,0.945714]
[1674181181564,0.425963,21149.0,21148.0,1.32008418]
[1674181181835,0.425963,21149.0,21148.0,0.945714]
[1674181182083,0.086,21149.0,21148.0,0.954214]
[1674181182617,0.086,21149.0,21148.0,1.39362982]
[1674181182869,0.00056989,21151.0,21148.0,1.39362982]
[1674181183132,0.00056989,21151.0,21149.0,0.0085]
[1674181183393,0.00056989,21151.0,21150.0,0.472813]
[1674181183930,0.32105989,21151.0,21150.0,0.472813]
[1674181184192,0.40705989,21151.0,21150.0,0.472813]
[1674181184468,0.74451829,21151.0,21150.0,0.472813]
[1674181184724,0.83151829,21151.0,21150.0,0.472813]
[1674181184985,0.74451829,21151.0,21150.0,0.945626]
[1674181185246,0.32105989,21151.0,21150.0,0.945626]
[1674181185499,0.32105989,21151.0,21150.0,1.32392108]
[1674181185975,0.08656989,21151.0,21150.0,1.32392108]
[1674181186248,0.00056989,21151.0,21150.0,1.32392108]
[1674181186489,0.08656989,21151.0,21150.0,1.32392108]
[1674181186755,0.00056989,21151.0,21150.0,1.32392108]
[1674181187018,0.08656989,21151.0,21150.0,1.32392108]
[1674181188370,0.08656989,21151.0,21150.0,1.33242108]
[1674181188632,0.08656989,21151.0,21150.0,0.954126]
[1674181188894,0.08656989,21151.0,21150.0,1.41892803]
[1674181198949,0.08656989,21151.0,21150.0,1.254126]
[1674181199178,0.13117582,21157.0,21150.0,2.04476669]
[1674181199440,0.13117582,21157.0,21151.0,1.83107885]
[1674181199441,0.01859631,21157.0,21151.0,1.83107885]
[1674181199708,0.01859631,21157.0,21153.0,0.11298447]
[1674181199968,0.01859631,21157.0,21154.0,3.952307]
[1674181200254,0.01859631,21157.0,21155.0,2.439941]
[1674181200511,0.33914689,21166.0,21156.0,1.74123806]
[1674181200879,0.28251873,21167.0,21163.0,0.47720169]
[1674181200882,0.00056916,21168.0,21164.0,0.23625]
[1674181201113,0.00056916,21168.0,21165.0,0.79149069]
[1674181201361,0.17050848,21171.0,21166.0,1.270532]
[1674181201362,0.27751873,21170.0,21166.0,1.270532]
[1674181201661,0.27751873,21169.0,21164.0,0.42322446]
[1674181201906,0.326326,21168.0,21164.0,0.42322446]
[1674181202182,0.211129,21167.0,21164.0,0.42322446]
[1674181202408,0.308676,21166.0,21164.0,0.41472446]
[1674181202661,0.228779,21165.0,21158.0,0.7988764]
[1674181202919,0.50299697,21164.0,21162.0,0.39008695]
[1674181203176,0.328779,21163.0,21162.0,0.39008695]
[1674181203421,0.328779,21163.0,21158.0,0.4023228]
[1674181203422,0.63910577,21163.0,21158.0,0.4023228]
[1674181203664,0.308676,21162.0,21158.0,0.4023228]
[1674181203911,0.19432097,21162.0,21158.0,0.55874244]
[1674181204170,0.02245618,21166.0,21159.0,0.47720169]
[1674181204419,0.02245618,21166.0,21161.0,0.94513]
[1674181204662,0.02245618,21166.0,21162.0,0.81231069]
[1674181204923,0.02245618,21166.0,21164.0,0.1]
[1674181205183,0.02245618,21166.0,21165.0,0.79403769]
[1674181205490,0.02245618,21166.0,21165.0,1.09403769]
[1674181205722,0.02245618,21166.0,21165.0,1.12451312]
[1674181205990,0.02245618,21166.0,21165.0,1.09403769]